Cogmind - Beta 10.2 @@@ ROGUE MODE // 2020.11.17 @ 21:35:32 // Halloween2020/ForbiddenLore Player: IAMCRAIG Result: Destroyed by as-46265 with Assembled Blade Performance ------------- Evolutions (0) 0 Regions Visited (2) 400 Robots Destroyed (26) 130 Value Destroyed (569) 569 Prototype IDs (4) 80 Alien Tech Used (0) 0 Bonus (0) 0 TOTAL SCORE: 1179 Bonus ------- None Cogmind --------- Core Integrity 0/250 Matter 180/300 Energy 240/250 System Corruption 0% Temperature Cool (7) Movement Treading (180) Ox1 Location -10/Mines Parts ------- > --- POWER (1) -------- Ion Engine > --- PROPULSION (2) --- Light Treads Compact Wheel > --- UTILITY (2) ------ High-capacity Storage Unit > --- WEAPON (2) ------- Light Assault Rifle > --- INVENTORY (12) --- Light Ion Engine Light Treads High-capacity Storage Unit High-capacity Storage Unit High-capacity Storage Unit High-capacity Storage Unit High-capacity Matter Pod (200) Improved Terrain Scanner Propulsion Shielding Assault Rifle Light Cannon Peak State ------------ > --- POWER ------------ Ion Engine > --- PROPULSION ------- Wheel Wheel > --- UTILITY ---------- Large Storage Unit Improved Terrain Scanner > --- WEAPON ----------- Medium Laser Small Laser > --- INVENTORY -------- Ion Engine Light Treads Light Treads Compact Wheel Compact Wheel Large Storage Unit Large Storage Unit Assault Rifle Grenade Launcher Grenade Launcher [Rating: 9] Favorites ----------- Power Ion Engine Engine Ion Engine Propulsion Light Treads Treads Light Treads Leg Aluminum Leg Wheel Compact Wheel Utility High-capacity Storage Unit Device Structural Scanner Storage High-capacity Storage Unit Processor Signal Interpreter Protection Light Armor Plating Weapon Assault Rifle Energy Gun Medium Laser Ballistic Gun Assault Rifle Launcher Grenade Launcher Build | -11 -10 -10 ------- Run | Scr Mat Min Slots Evolved . | . . . Power . | . . . Propulsion . | . . . Utility . | . . . Weapon . | . . . Parts Attached 35 | 8 21 6 Power 3 | 1 2 . Engine 3 | 1 2 . Core . | . . . Reactor . | . . . Propulsion 11 | 3 7 1 Treads 2 | . 2 . Leg 1 | . 1 . Wheel 8 | 3 4 1 Hover . | . . . Flight . | . . . Utility 8 | 2 5 1 Device 2 | . 2 . Storage 4 | 2 2 . Processor 1 | . 1 . Hackware . | . . . Protection 1 | . . 1 Artifact . | . . . Weapon 13 | 2 7 4 Energy Gun 5 | 2 3 . Energy Cannon . | . . . Ballistic Gun 5 | . 2 3 Ballistic Cannon . | . . . Launcher 3 | . 2 1 Special Weapon . | . . . Impact Weapon . | . . . Slashing Weapon . | . . . Piercing Weapon . | . . . Special Melee Weapon . | . . . Unidentified Prototypes . | . . . Parts Lost 10 | . 5 5 Power 1 | . 1 . Propulsion 3 | . 2 1 Utility 1 | . . 1 Weapon 5 | . 2 3 Highest Loss Streak 5 | . 5 3 Average Slot Usage (%) 95 | . 94 98 Engine 10 | . 9 14 Treads 10 | . 9 14 Wheel 16 | . 17 13 Device 10 | . 11 2 Storage 14 | . 14 14 Processor 1 | . 1 . Protection 2 | . . 11 Energy Gun 9 | . 11 . Ballistic Gun 10 | . 9 16 Launcher 7 | . 6 10 Naked Turns . | . . . Heaviest Build 45 | 14 43 45 Greatest Support 32 | 26 32 20 Greatest Overweight (x) 4 | . 4 4 Average Overweight (x) 1 | . 1 2 Largest Inventory Capacity 12 | 8 12 12 Average Capacity 11 | 6 11 12 Most Carried 12 | 7 12 12 Average Carried 10 | 3 11 11 Final Capacity 12 | 8 12 12 Final Carried 12 | 7 12 11 Class Distribution -------------------- 94% | Mutant 5% | Scavenger-Mutant Dominant Class ---------------- Mutant | -10/Materials Mutant | -10/Mines Resources | -11 -10 -10 ----------- Run | Scr Mat Min Matter Collected 941 | 277 631 33 Remotely . | . . . Salvage Created 719 | 61 586 72 Parts 57 | 7 32 18 Haulers Intercepted 2 | . 2 . Recyclers Shooed 1 | . 1 . Parts Field Recycled . | . . . Retrieved Matter . | . . . Parts Self-Destructed . | . . . Prevented . | . . . Kills | -11 -10 -10 ------- Run | Scr Mat Min Combat Hostiles Destroyed 19 | . 10 9 Guns 12 | . 9 3 AOE 7 | . 1 6 Classes Destroyed 8 | 2 4 2 Worker 1 | . 1 . Tunneler 3 | 1 . 2 Hauler 2 | . 2 . Recycler 1 | 1 . . Watcher 3 | . 3 . Swarmer 6 | . . 6 Grunt 10 | . 10 . Assembled 3 | . . 3 Best Kill Streak 5 | 1 4 5 Combat Bots Only 4 | . 4 3 Max Kills in Single Turn 3 | 1 1 3 Gunslinging . | . . . Exploded 3 | . 1 3 Melee . | . . . Uniques/NPCs Destroyed . | . . . Combat | -11 -10 -10 -------- Run | Scr Mat Min Damage Taken 1207 | . 617 590 Core 252 | . 112 140 Absorbed by Shields . | . . . Core Remaining (%) 100 | 100 . . Volleys Fired 86 | 5 62 19 Largest 2 | 2 2 2 Hottest 100 | 90 100 40 Shots Fired 117 | 10 87 20 Gun 104 | 10 82 12 Cannon . | . . . Launcher 13 | . 5 8 Special . | . . . Kinetic 50 | . 38 12 Thermal 54 | 10 44 . Explosive 13 | . 5 8 Electromagnetic . | . . . Robot Hit Streak 12 | 4 12 3 Robot Miss Streak 5 | 1 5 2 Penetration Max . | . . . Secondary Targets 1 | . 1 . Max Gunslinging Chain 1 | . 1 . Shots Hit Robots 69 | 7 54 8 Core Hits 59 | 3 34 22 Critical Hits . | . . . Critical Kills . | . . . Critical Parts Destroyed . | . . . Melee Attacks . | . . . Impact . | . . . Slashing . | . . . Piercing . | . . . Sneak Attacks . | . . . Combat Hostiles . | . . . Follow-up Attacks . | . . . Damage Inflicted 1799 | 85 982 732 Guns 918 | 85 754 79 Cannons . | . . . Explosions 860 | . 212 648 Melee . | . . . Ramming 21 | . 16 5 Kinetic 423 | . 344 79 Thermal 495 | 85 410 . Explosive 860 | . 212 648 Electromagnetic . | . . . Impact . | . . . Slashing . | . . . Piercing . | . . . Highest Corruption . | . . . Average Corruption . | . . . Corruption Purged . | . . . Overload Shots . | . . . Overflow Damage 46 | . . 46 Projectiles . | . . . Explosions 46 | . . 46 Melee . | . . . Knockbacks . | . . . Impact . | . . . Kinetic . | . . . Secondary . | . . . Self-Inflicted Damage 78 | . 10 68 Shots 4 | . 1 3 Rammed 5 | . 4 1 Targets Rammed 5 | . 4 1 Kicked . | . . . Crushed . | . . . Highest Temperature 390 | 120 390 32 Average Temperature 104 | 54 120 15 Received Heat Transfer 376 | . 336 40 Effects 6 | . 6 . Shutdowns 1 | . 1 . Interference 2 | . 2 . Matter Decay 2 | . 2 . Short Circuit 1 | . 1 . Siege Activations . | . . . Robots Corrupted . | . . . Combat Hostiles . | . . . Parts Fried . | . . . Impact Corruptions . | . . . Robots Melted . | . . . Combat Hostiles . | . . . Parts Melted 2 | . 2 . Heat Transferred 1458 | 223 1235 . Parts Sabotaged . | . . . Parts Stolen . | . . . Parts Stripped . | . . . Power Chain Reactions . | . . . Missiles Intercepted . | . . . Alert | -11 -10 -10 ------- Run | Scr Mat Min Peak Influence 249 | 10 249 221 Initial 31 | . 6 31 Average 84 | 4 63 196 Maximum Alert Level 1 | . 1 1 Low Security (%) 86 | 100 98 28 Level 1 13 | . 1 71 Level 2 . | . . . Level 3 . | . . . Level 4 . | . . . Level 5 . | . . . High Security . | . . . Max Security . | . . . Squads Dispatched 2 | . 2 . Investigation 1 | . 1 . Extermination . | . . . Reinforcement 1 | . 1 . Assault . | . . . Garrison . | . . . Intercept . | . . . Construction Impeded . | . . . Haulers Reinforced . | . . . Stealth | -11 -10 -10 --------- Run | Scr Mat Min Distress Signals 1 | . 1 . Communications Jammed . | . . . Distress Signals . | . . . Times Spotted 38 | . 22 16 Peak Tracking Total 16 | . 5 16 Tactical Retreats 1 | . 1 . Traps | -11 -10 -10 ------- Run | Scr Mat Min Traps Triggered 1 | . 1 . Indirectly . | . . . Trap Hack Attempts . | . . . Triggered . | . . . Disarmed . | . . . Reprogrammed . | . . . Reused . | . . . Traps Extracted . | . . . Installed . | . . . Triggered . | . . . Machines | -11 -10 -10 ---------- Run | Scr Mat Min Machines Disabled 5 | . 2 3 Max in Single Turn 3 | . 2 3 Machines Sabotaged . | . . . Garrisons Compromised . | . . . Overloaded Fab Kills . | . . . Fab Network Shutdowns . | . . . Hacking | -11 -10 -10 --------- Run | Scr Mat Min Machines Accessed 10 | . 10 . Terminals 7 | . 7 . Fabricators . | . . . Repair Stations 1 | . 1 . Recycling Units 2 | . 2 . Scanalyzers . | . . . Garrison Access . | . . . Total Hacks 42 | . 42 . Successful 28 | . 28 . Failed 14 | . 14 . Catastrophic . | . . . Database Lockouts . | . . . Manual 21 | . 21 . Terminals 28 | . 28 . Fabricators . | . . . Repair Stations 7 | . 7 . Recycling Units 7 | . 7 . Scanalyzers . | . . . Garrison Access . | . . . Terminal Hacks 7 | . 7 . Robot Analysis 1 | . 1 . Prototype ID Bank 3 | . 3 . Terminal Index 1 | . 1 . Locate Traps 1 | . 1 . Zone Layout 1 | . 1 . Fabricator Hacks . | . . . Repair Station Hacks 7 | . 7 . Scan Component 3 | . 3 . Repair 3 | . 3 . Refit 1 | . 1 . Recycling Unit Hacks 3 | . 3 . Report Inventory 2 | . 2 . Retrieve Components 1 | . 1 . Scanalyzer . | . . . Garrison Access Hacks . | . . . Unauthorized Hacks 11 | . 11 . Terminals 10 | . 10 . Track 1 | . 1 . Assimilate 2 | . 2 . Botnet 6 | . 6 . Operators 1 | . 1 . Fabricators . | . . . Repair Stations . | . . . Recycling Units 1 | . 1 . Reject 1 | . 1 . Scanalyzers . | . . . Garrison Access . | . . . Data Cores Recovered . | . . . Used . | . . . Hacking Detections 10 | . 10 . Full Trace Events . | . . . Feedback Events . | . . . Feedback Blocked . | . . . Robot Schematics Acquired . | . . . Robots Built . | . . . Matter . | . . . Time . | . . . Total Robot Build Rating . | . . . Part Schematics Acquired . | . . . Parts Built . | . . . Matter . | . . . Time . | . . . Total Part Build Rating . | . . . Parts Repaired 3 | . 3 . Time 84 | . 84 . Parts Recycled . | . . . Recycled Matter . | . . . Retrieved Matter . | . . . Retrieved Components 5 | . 5 . Parts Scanalyzed . | . . . Part Schematics Acquired . | . . . Parts Damaged . | . . . Bothacking | -11 -10 -10 ------------ Run | Scr Mat Min Used RIF Installer . | . . . Robots Hacked . | . . . Non-combat . | . . . Combat . | . . . Robot Hacks Applied . | . . . Relay Couplers Released . | . . . Robots Rewired . | . . . Allies Hacked . | . . . Hacks Repelled . | . . . Allies | -11 -10 -10 -------- Run | Scr Mat Min Total Allies 1 | . 1 . Largest Group 1 | . 1 . Highest-Rated Group 10 | . 10 . Highest-Rated Ally 10 | . 10 . Total Orders . | . . . Ally Attacks . | . . . Total Damage . | . . . Kills . | . . . Allies Corrupted . | . . . Allies Melted . | . . . Intel | -11 -10 -10 ------- Run | Scr Mat Min Robot Analysis Total 1 | . 1 . Derelict Logs Recovered . | . . . Drone Launches . | . . . Drone Recoveries . | . . . Exploration | -11 -10 -10 ------------- Run | Scr Mat Min Turns Passed 1536 | 84 1180 272 Spaces Moved 990 | 60 753 177 Core 1 | 1 . . Treads 35 | . 29 6 Legs . | . . . Wheels 954 | 59 724 171 Hover . | . . . Flight . | . . . Fastest Speed 50 | 50 80 120 Average Speed 112 | 84 112 122 Slowest Speed 200 | 90 180 200 Overloaded Moves . | . . . Propulsion Burnouts . | . . . Robots Hopped . | . . . Cave-ins Triggered . | . . . Exploration Rate (%) 48 | 4 100 41 Regions Visited 2 Branch Regions 1 Pre-discovered Areas . | . . . Known Exits Taken 1 | . 1 . Unknown Exits Taken 1 | 1 . . Scrap Searched . | . . . Spaces Dug 5 | . 5 . Terrain Destroyed 64 | . 27 37 Melee . | . . . Projectile . | . . . AOE 64 | . 27 37 Terrain Rammed . | . . . Walls Destroyed . | . . . Machines Disabled . | . . . Actions | -11 -10 -10 --------- Run | Scr Mat Min Total 1295 | 78 1006 211 Wait 126 | . 122 4 Move 988 | 59 752 177 Hop . | . . . Pick Up 30 | 6 22 2 Fast Attach 12 | 7 4 1 Attach 9 | . 7 2 Detach 3 | . 3 . Swap 14 | 1 10 3 Drop 22 | . 20 2 Fire 86 | 5 62 19 Melee . | . . . Ram . | . . . Kick . | . . . Crush 5 | . 4 1 Escape Stasis . | . . . Rewire . | . . . Trap . | . . . Miscellaneous . | . . . Route ------- -11/Scrapyard -10/Materials (discovered 4 exits: [*Mat x3] / *Min) -10/Mines History --------- Turn | Location | Event 10 | -11/Scrapyard | Discovered new exit (range 15) 85 | -11/Scrapyard | Entered Materials 200 | -10/Materials | Discovered new exit (range 16) 223 | -10/Materials | Identified exit to Mines 316 | -10/Materials | Discovered new exit (range 16) 510 | -10/Materials | Lost 5 parts (1p2n2w) 609 | -10/Materials | Discovered new exit (range 11) 618 | -10/Materials | Build established: Mutant 909 | -10/Materials | Discovered new exit (range 12) 976 | -10/Materials | Repaired Assault Rifle 1004 | -10/Materials | Repaired Lgt. Treads 1037 | -10/Materials | Repaired Imp. Terrain Scanner 1265 | -10/Materials | Entered Mines 1274 | -10/Mines | Core integrity fell below 50% 1520 | -10/Mines | Assembled infested the area 1535 | -10/Mines | Core integrity fell below 20% 1537 | -10/Mines | Destroyed by as-46265 with Assembled Blade Last Messages --------------- 01394_ U-05 Engineer builds a Wall. 01396_ Acquired 1 matter. 01398_ U-05 Engineer builds a Wall. 01402_ U-05 Engineer lays Concrete. 01404_ K-01 Serf collects debris. 01404_ U-05 Engineer lays Concrete. 01405_ U-05 Engineer builds a Wall. 01406_ U-05 Engineer lays Concrete. 01408_ K-01 Serf collects debris. 01505_ Dropped Assault Rifle. 01505_ Acquired Assault Rifle. 01520_ ALERT: Infestation in the mines, dispatching Demolisher response squad. 01532_ Lgt. Assault Rifle destroyed. 01532_ as-48484 destroyed. 01532_ Destroyed Asb. Hover Unit. 01532_ as-84576 destroyed. 01532_ as-55416 destroyed. 01534_ Grenade Launcher destroyed. 01535_ Lgt. Armor Plating destroyed. Map ----- +----------------------------------------------------+ | ????????????????????????????????????? | | ????????????????????????????????????? | | ????????????????????????????????????? | | ????????????????????????????????????? | | ????????????????????????????????????? | | ????????????????????????????????????? | | ????????????????????????????????????? | | ????????????????????????????????????? | | ????????????????????????????????????? | | ????????????????????????????????????? | | ????????????????????????????????????? | | ???????????????? ???????????????????? | | ??????????????? #??????????????????? | | ??????????????? ##?????????????????? | | ??????????????# #?????????????????? | | ????????????## ?????????????????? | | ???????????? ??????????????????? | | ???????????? ??????????????????? | | ???????????? ???????????????????? | | ???????????? #???????????????????? | | ???????????? #???????????????????? | | ????????????# ##??????????????????? | | ?????????#### #????????#?????????? | | ?????????# ## #?### ????????? | | ?????###?# ## ????????? | | ????## # @a # ????????? | | ????# # a a a a ???????? | | ????# # % a ???????? | | ?????# #???????? | | ??????# #????????? | | ??????## ###?????????? | | ???????#### ##???????????? | | ??????????## ## ##????????????? | | ???????????## #?####?????????????? | | ?????????##### #??????????????????? | | ?????????# #??????????????????? | | ?????????# ### ##??????????????????? | | ?????????# #??###???????????????????? | | ???????### ####?????????????????????? | | ??????## [ ###???########????????? | | ??????# ##### ##???????? | | ??????# ##??????? | | ??????# ###????? | | ??????## ####?? | | ???????## ### ### * ##? | | ????????## *##?# ##?## #? | | ?????????######?## #???## #? | | ??????????????### ##???## #? | | ??????????????# ##???# ! ##? | | ??????????????## #???# ### | +----------------------------------------------------+ Best States ------------- Heat Dissipation 25 Energy Generation 10 Energy Capacity 250 Matter Stores 300 Matter Capacity 300 Sight Range 16 Terrain Scan Range 16 Terrain Scan Density 10 Armor Coverage 150 Evasion (%) 44 Recoil Reduction 1 Item Schematics ----------------- None Robot Schematics ------------------ None Fabricated ------------ Nothing Alien Tech Used ----------------- None Achievements -------------- None Challenges ------------ None Game ------ Seed BladeDecoderModule Manual? 0 Play Time 00:23:00 Cumulative 217.8 hours Start 2020.11.17 @ 21:04:54 End 2020.11.17 @ 21:35:32 Sessions 1 Manual Loads 0 Difficulty Rogue Special Mode Halloween2020/ForbiddenLore Game No. 80 Rogue 80 Adventurer 0 Explorer 0 Win Type - Total 2 Types 1/0/1/0/0/0/0/0/0 Lore% 66 Gallery% 78 Achievement% 67 Wizard Run 0 Options --------- ASCII 1 Keyboard 1 Movement Numpad Keybinds 0 Fullscreen 1 Font 16/SmallcapsGlow Map View 75x55 Tactical HUD 1 Map Filters NONE Filters NONE Steam 1 RUN: 13e9b1d9-fe75-4c45-a3af-c5113aa16047